bitfinex-derivatives/quotes_BTCF0:USTF0_20251030
["timestamp","ask_amount","ask_price","bid_price","bid_amount"]
[1761795188493,0.24326741,110840.0,110830.0,1.5]
[1761795189098,0.24326741,110840.0,110830.0,1.501]
[1761795189290,0.27570289,110840.0,110830.0,1.502]
[1761795192384,0.26136675,110840.0,110830.0,1.502]
[1761795195902,0.51136675,110840.0,110830.0,1.502]
[1761795196605,0.51408675,110840.0,110830.0,1.502]
[1761795196791,0.53029345,110840.0,110830.0,0.002]
[1761795197101,0.52757345,110840.0,110830.0,0.002]
[1761795197303,0.52757345,110840.0,110830.0,1.502]
[1761795197904,0.53646751,110840.0,110830.0,1.502]
[1761795198401,0.53646751,110840.0,110830.0,0.001]
[1761795198603,0.54246751,110840.0,110830.0,0.001]
[1761795198901,0.05811,110820.0,110810.0,1.81985301]
[1761795199206,0.24367416,110820.0,110810.0,1.81985301]
[1761795199506,0.08239289,110820.0,110810.0,1.81985301]
[1761795200099,0.06111,110820.0,110810.0,1.81985301]
[1761795201799,0.06211,110820.0,110810.0,1.81985301]
[1761795206594,0.03931,110820.0,110810.0,1.81985301]
[1761795206795,0.004,110820.0,110810.0,2.58113428]
[1761795207101,0.003,110820.0,110810.0,2.07137538]
[1761795208199,0.002,110820.0,110810.0,2.07137538]
[1761795210402,0.092233,110820.0,110810.0,2.07137538]
[1761795211313,0.092233,110820.0,110810.0,2.07137276]
[1761795212013,0.092233,110820.0,110810.0,2.67137276]
[1761795212214,0.002,110820.0,110810.0,2.23265141]
[1761795212401,0.00065004,110820.0,110810.0,2.83537141]
[1761795212605,0.0902218,110840.0,110820.0,0.0902266]
[1761795212797,0.0902218,110840.0,110830.0,0.47183865]
[1761795213003,0.1255318,110840.0,110830.0,0.47183865]
[1761795214212,0.1036618,110840.0,110830.0,0.56206355]
[1761795214914,0.1046618,110840.0,110830.0,0.56206355]
[1761795215110,0.0912218,110840.0,110830.0,0.56206355]
[1761795216617,0.001,110840.0,110830.0,0.56206355]
[1761795217119,0.001,110840.0,110830.0,0.75854087]
[1761795218210,0.001,110840.0,110830.0,0.80725887]
[1761795218419,0.0902095,110850.0,110830.0,0.75854087]
[1761795218720,0.0902095,110850.0,110840.0,0.412774]
[1761795221216,0.1034595,110850.0,110840.0,0.48334089]
[1761795221417,0.1267195,110850.0,110840.0,0.32206224]
[1761795221718,0.30979815,110850.0,110840.0,0.63258224]
[1761795221918,0.30979815,110850.0,110840.0,0.47130359]
[1761795222307,0.30979815,110850.0,110840.0,0.4007367]
[1761795222518,0.30979815,110850.0,110840.0,0.56201535]
[1761795223211,0.30979815,110850.0,110840.0,0.4007367]
[1761795223419,0.30979815,110850.0,110840.0,0.4007368]
[1761795223631,0.1034668,110840.0,110830.0,0.03247867]
[1761795223819,0.30880545,110840.0,110830.0,0.56202365]
[1761795224016,0.30880545,110840.0,110830.0,0.25150365]
[1761795224217,0.1475268,110840.0,110830.0,0.16127865]
[1761795224413,0.1475349,110830.0,110820.0,0.28398522]
[1761795224711,0.1475349,110830.0,110820.0,0.59446522]
[1761795225119,0.1465349,110830.0,110820.0,0.59446522]
[1761795225617,0.1465349,110830.0,110820.0,0.59546522]
[1761795225820,0.1465349,110830.0,110820.0,0.59746522]
[1761795227219,0.1465349,110830.0,110820.0,0.56498655]
[1761795227520,0.1465349,110830.0,110820.0,0.59746522]
[1761795227723,0.30781355,110830.0,110820.0,0.59746522]
[1761795228021,0.30781355,110830.0,110820.0,0.28698522]
[1761795228411,0.1465349,110830.0,110820.0,0.59746522]
[1761795228616,0.1465349,110830.0,110820.0,0.28698522]
[1761795228816,0.30781355,110830.0,110820.0,0.59746522]
[1761795229722,0.30781355,110830.0,110820.0,0.28698522]
[1761795230021,0.30781355,110830.0,110820.0,0.59746522]
[1761795231810,0.1465349,110830.0,110820.0,0.59746522]
[1761795235512,0.30781355,110830.0,110820.0,0.03547867]
[1761795235718,0.30781355,110830.0,110820.0,0.31348]
[1761795236317,0.30781355,110830.0,110820.0,0.003]
[1761795236521,0.93209644,110830.0,110820.0,0.003]
[1761795236919,1.09337509,110830.0,110820.0,0.003]
[1761795237224,0.93209644,110830.0,110820.0,0.003]
[1761795237423,1.09337509,110830.0,110820.0,0.003]
[1761795237623,0.93209644,110830.0,110820.0,0.003]
[1761795239023,0.1465349,110830.0,110820.0,0.16427865]
[1761795239223,0.30781355,110830.0,110820.0,0.16427865]
[1761795239726,0.30781355,110830.0,110820.0,0.003]
[1761795240622,0.33209644,110830.0,110820.0,0.003]
[1761795242826,0.49337509,110830.0,110820.0,0.003]
[1761795243026,0.33209644,110830.0,110820.0,0.003]
[1761795244034,0.49337509,110830.0,110820.0,0.003]
[1761795244227,0.33209644,110830.0,110820.0,0.003]
[1761795245733,0.30781355,110830.0,110820.0,0.003]
[1761795246034,0.30781355,110830.0,110820.0,0.16427865]
[1761795246622,0.30781355,110830.0,110820.0,0.003]
[1761795252242,0.33209644,110830.0,110820.0,0.003]
[1761795258434,0.33209644,110830.0,110820.0,0.16427865]
[1761795258937,0.33209644,110830.0,110820.0,0.003]
[1761795259143,0.33209644,110830.0,110820.0,0.16427865]
[1761795259643,0.33209644,110830.0,110820.0,0.003]
[1761795262143,0.33209644,110830.0,110820.0,0.16427865]
[1761795262847,0.33209644,110830.0,110820.0,0.25451175]
[1761795269948,0.17081779,110830.0,110820.0,0.25451175]
[1761795270144,0.1465349,110830.0,110820.0,0.44826907]
[1761795271236,0.05731,110830.0,110820.0,0.49698707]
[1761795271539,0.05731,110830.0,110820.0,0.28696485]
[1761795271938,0.05731,110830.0,110820.0,0.33568285]
[1761795272450,0.05731,110830.0,110820.0,0.28696485]
[1761795280054,0.05731,110830.0,110820.0,0.12571177]
[1761795281256,0.05731,110830.0,110820.0,0.28696485]
[1761795282757,0.05731,110830.0,110820.0,0.12571177]
[1761795285156,0.05731,110830.0,110820.0,1.62571177]
[1761795286551,0.05731,110830.0,110820.0,1.78696485]
[1761795288847,0.05731,110830.0,110820.0,1.62571177]
[1761795295663,0.05731,110830.0,110820.0,1.78696485]
[1761795295967,0.05731,110830.0,110820.0,1.6419511]
[1761795296561,0.05731,110830.0,110820.0,1.80320418]
[1761795300665,0.01325,110830.0,110820.0,1.80320418]
[1761795300866,0.08160289,110840.0,110830.0,0.0902249]
[1761795301166,0.05732,110840.0,110830.0,0.59444337]
[1761795303371,0.05732,110840.0,110830.0,0.64316137]
[1761795303668,0.08160289,110850.0,110840.0,0.0902167]
[1761795303974,0.05732,110850.0,110840.0,0.28394302]
[1761795304972,0.05832,110850.0,110840.0,0.28394302]
[1761795305478,0.05832,110850.0,110840.0,0.12268994]
[1761795307467,0.05832,110850.0,110840.0,0.19415164]
[1761795308270,0.05832,110850.0,110840.0,0.1616784]
[1761795308572,0.05832,110850.0,110840.0,0.32293148]
[1761795312072,0.05832,110850.0,110830.0,0.03247324]
[1761795312277,0.22012308,110840.0,110830.0,0.03247324]
[1761795312571,0.0566,110820.0,110810.0,0.35228625]
[1761795312778,0.21785308,110820.0,110810.0,0.31981301]
[1761795314478,0.24213597,110820.0,110810.0,0.32181301]
[1761795314678,0.24213597,110820.0,110810.0,0.32481301]
[1761795315376,0.24213597,110820.0,110810.0,0.01433301]
[1761795315769,0.24213597,110820.0,110810.0,0.00506991]
[1761795316966,0.24213597,110820.0,110810.0,0.01422677]
[1761795317169,0.24213597,110820.0,110810.0,0.00506991]
[1761795318282,0.21785308,110820.0,110810.0,0.00506991]
[1761795320279,0.21785308,110820.0,110810.0,0.01423853]
[1761795325585,0.03553,110830.0,110810.0,0.42698589]
[1761795325794,0.03553,110830.0,110820.0,0.47177308]
[1761795325976,0.0566,110830.0,110820.0,0.47177308]
[1761795327486,0.0566,110830.0,110820.0,0.31052]
[1761795327689,0.0566,110830.0,110820.0,0.31252]
[1761795328290,0.0566,110830.0,110820.0,0.31352]
[1761795328793,0.21785308,110830.0,110820.0,0.31368]
[1761795330388,0.21785308,110830.0,110820.0,0.003]
[1761795331980,0.0566,110830.0,110820.0,0.003]
[1761795333391,0.21788365,110830.0,110820.0,0.003]
[1761795348324,0.24216654,110830.0,110820.0,0.003]
[1761795352829,0.24218559,110830.0,110820.0,0.003]
[1761795358332,0.24218559,110830.0,110820.0,0.03547324]
[1761795359435,0.24218559,110830.0,110820.0,0.19675689]
[1761795362132,0.08090194,110830.0,110820.0,0.19675689]
[1761795362335,0.24218559,110830.0,110820.0,0.19675689]
[1761795363132,0.08090194,110830.0,110820.0,0.28698999]
[1761795363438,0.08090194,110830.0,110820.0,0.35804054]
[1761795363636,0.0566,110830.0,110820.0,0.49699164]
[1761795364137,0.0566,110830.0,110820.0,0.49971164]
[1761795364328,0.0566,110830.0,110820.0,0.49699164]
[1761795364534,0.0566,110830.0,110820.0,0.49971164]
[1761795364836,0.0566,110830.0,110820.0,0.49699164]
[1761795365033,0.0566,110830.0,110820.0,0.49971164]
[1761795365543,0.0566,110830.0,110820.0,0.49699164]
[1761795365726,0.0566,110830.0,110820.0,0.49971164]
[1761795368137,0.0566,110830.0,110820.0,0.49699164]
[1761795368437,0.0566,110830.0,110820.0,0.44827364]
[1761795370425,0.0566,110830.0,110820.0,0.49971164]
[1761795371137,0.0566,110830.0,110820.0,0.49699164]
[1761795371527,0.0566,110830.0,110820.0,0.49971164]
[1761795371728,0.0566,110830.0,110820.0,0.4672384]
[1761795372738,0.0566,110830.0,110820.0,0.4645184]
[1761795376134,0.0566,110830.0,110820.0,0.4672384]
[1761795377145,0.0131,110830.0,110820.0,0.4672384]
[1761795377746,0.03455,110830.0,110820.0,0.4672384]
[1761795379550,0.05615,110830.0,110820.0,0.4672384]
[1761795381451,0.0131,110840.0,110830.0,0.0902249]
[1761795381452,0.05615,110840.0,110830.0,0.0902249]
[1761795381652,0.05615,110840.0,110830.0,0.61342655]
[1761795382743,0.21743365,110840.0,110830.0,0.4504229]
[1761795382950,0.21743365,110840.0,110830.0,0.4828482]
[1761795383247,0.21743365,110840.0,110830.0,0.59541385]
[1761795383452,0.21743365,110840.0,110830.0,0.3439053]
[1761795384958,0.3787173,110840.0,110830.0,0.0334253]
[1761795385158,0.3787173,110840.0,110830.0,0.001]
[1761795385466,0.3787173,110840.0,110830.0,0.31148]
[1761795386267,0.21743365,110840.0,110830.0,0.31148]
[1761795387165,0.3787173,110840.0,110830.0,0.31148]
[1761795388366,0.40301924,110840.0,110830.0,0.31148]
[1761795389764,0.24173559,110840.0,110830.0,0.31148]
[1761795392669,0.08045194,110840.0,110830.0,0.31148]
[1761795392873,0.24173559,110840.0,110830.0,0.31148]
[1761795393472,0.24172479,110840.0,110830.0,0.31148]
[1761795398277,0.08045194,110840.0,110830.0,0.31148]
[1761795399376,0.24172479,110840.0,110830.0,0.31148]
[1761795401880,0.08045194,110840.0,110830.0,0.31148]
[1761795407880,0.08045194,110840.0,110820.0,0.28393105]
[1761795407881,0.51172479,110840.0,110820.0,0.0324253]
[1761795408086,0.51172479,110840.0,110810.0,0.35214383]
[1761795408087,0.05871,110820.0,110810.0,0.35214383]
[1761795409788,0.05771,110820.0,110810.0,0.35214383]
[1761795409989,0.05771,110820.0,110810.0,0.35614383]
[1761795410487,0.05771,110820.0,110810.0,0.35814383]
[1761795416992,0.05771,110820.0,110810.0,0.51941668]
[1761795418386,0.05771,110820.0,110810.0,0.35814383]
[1761795422596,0.21898285,110820.0,110810.0,0.01523853]
[1761795422791,0.21898285,110820.0,110810.0,0.32571853]
[1761795422988,0.02308,110800.0,110790.0,0.048718]
[1761795423287,0.05871,110770.0,110760.0,0.3108]
[1761795423593,0.05871,110770.0,110760.0,0.56235475]
[1761795423780,0.05871,110780.0,110760.0,0.62001458]
[1761795423987,0.05871,110780.0,110770.0,0.16127285]
[1761795424189,0.05277991,110780.0,110770.0,0.16127285]
[1761795424497,0.05607,110770.0,110760.0,0.57129658]
[1761795425398,0.05307,110770.0,110760.0,0.57129658]
[1761795426206,0.05307,110770.0,110760.0,0.64521084]
[1761795427499,0.05056991,110780.0,110770.0,0.0902738]
[1761795427796,6.991e-05,110780.0,110770.0,0.25154665]
[1761795428992,0.0565,110800.0,110790.0,0.0902574]
[1761795429194,0.0565,110800.0,110790.0,0.56245025]
[1761795429499,0.0565,110800.0,110790.0,2.06245025]
[1761795430200,0.0585,110800.0,110790.0,2.06245025]
[1761795430501,0.01555,110800.0,110790.0,2.06245025]
[1761795430685,0.0565,110800.0,110790.0,2.06245025]
[1761795430888,0.0605,110800.0,110790.0,2.06245025]
[1761795431504,0.0615,110800.0,110790.0,2.06245025]
[1761795437710,0.04022,110800.0,110790.0,2.06245025]
[1761795437899,0.06328,110800.0,110790.0,2.06245025]
[1761795438504,0.005,110800.0,110790.0,2.2264431]
[1761795439904,0.001,110800.0,110790.0,2.2264431]
[1761795440109,0.005,110800.0,110790.0,2.2264431]
[1761795440512,0.004,110800.0,110790.0,2.2274431]
[1761795440913,0.03494,110810.0,110800.0,0.0902493]
[1761795441109,0.05577472,110810.0,110800.0,0.25152215]
[1761795442409,0.07883472,110810.0,110800.0,0.25152215]
[1761795443319,0.08083472,110810.0,110800.0,0.25152215]
[1761795443819,0.05777472,110810.0,110800.0,0.25152215]
[1761795444326,0.002,110810.0,110800.0,0.25424215]
[1761795444513,0.01312,110830.0,110820.0,0.090233]
[1761795444818,0.12748937,110840.0,110830.0,0.0902249]
[1761795444819,0.05794,110840.0,110830.0,0.0902249]
[1761795445020,0.07878524,110840.0,110830.0,0.25149775]
[1761795445616,0.02084524,110840.0,110830.0,0.25149775]
[1761795446111,0.05572524,110840.0,110830.0,0.25149775]
[1761795446420,0.03888,110840.0,110830.0,0.25149775]
[1761795446916,0.06194,110840.0,110830.0,0.25149775]
[1761795449129,0.06194,110840.0,110830.0,0.26031917]
[1761795449530,0.004,110840.0,110830.0,0.26031917]
[1761795449732,0.02582,110840.0,110830.0,0.26031917]
[1761795450228,0.03888,110840.0,110830.0,0.26031917]
[1761795451424,0.06194,110840.0,110830.0,0.26031917]
[1761795451730,0.05794,110840.0,110830.0,0.26031917]
[1761795451930,0.05894,110840.0,110830.0,0.26031917]
[1761795453130,0.001,110840.0,110830.0,0.26303917]
[1761795453433,0.05794,110870.0,110860.0,0.1341304]
[1761795453618,0.07873561,110870.0,110860.0,0.60636325]
[1761795453822,0.05794,110870.0,110860.0,0.60636325]
[1761795454628,0.05994,110870.0,110860.0,0.60636325]
[1761795454817,0.06594,110870.0,110860.0,0.60636325]
[1761795455535,0.06594,110870.0,110860.0,0.76735152]
[1761795457429,0.05288,110870.0,110860.0,0.76735152]
[1761795457637,0.008,110870.0,110860.0,0.76735152]
[1761795458636,0.02928,110870.0,110860.0,0.76735152]
[1761795460137,0.008,110870.0,110860.0,0.76735152]
[1761795460340,0.008,110870.0,110860.0,0.84084213]
[1761795460538,0.02928,110870.0,110860.0,0.84084213]
[1761795461125,0.008,110870.0,110860.0,1.00197269]
[1761795461330,0.008,110870.0,110860.0,0.84084213]
[1761795462835,0.01306,110890.0,110880.0,0.0901828]
[1761795463035,0.05536,110890.0,110880.0,0.76747392]
[1761795464033,0.06736,110890.0,110880.0,0.76747392]
[1761795464339,0.1575351,110890.0,110880.0,0.76747392]
[1761795464541,0.06736,110890.0,110880.0,0.76747392]
[1761795465634,0.012,110890.0,110880.0,0.76747392]
[1761795467240,0.03328,110890.0,110880.0,0.76747392]
[1761795467542,0.012,110890.0,110880.0,0.76747392]
[1761795471540,0.012,110890.0,110880.0,0.92860448]
[1761795471846,0.05603,110910.0,110900.0,0.45653772]
[1761795472039,0.07677394,110910.0,110900.0,0.76737772]
[1761795472243,0.07677394,110910.0,110900.0,0.60624716]
[1761795472645,0.07677394,110910.0,110900.0,0.6165884]
[1761795473047,0.08177394,110910.0,110900.0,0.6165884]
[1761795473236,0.2429045,110910.0,110900.0,0.36529124]
[1761795473437,0.2429045,110910.0,110900.0,0.01034124]
[1761795473637,0.05603,110890.0,110880.0,0.29541956]
[1761795473833,0.21716056,110890.0,110880.0,0.60633956]
[1761795474045,0.21716056,110890.0,110880.0,0.61686294]
[1761795474241,0.05603,110890.0,110880.0,0.61686294]
[1761795475240,0.07679868,110890.0,110880.0,0.61686294]
[1761795476046,0.07879868,110890.0,110880.0,0.61686294]
[1761795476740,0.07879868,110890.0,110880.0,0.7779935]
[1761795477342,0.07879868,110890.0,110880.0,0.61686294]
[1761795477549,0.07879868,110890.0,110880.0,0.7779935]
[1761795478636,0.06506868,110890.0,110880.0,0.7779935]
[1761795478937,0.0443,110890.0,110880.0,0.7779935]
[1761795479342,0.06508968,110890.0,110880.0,0.7779935]
[1761795481842,0.02278968,110890.0,110880.0,0.7779935]
[1761795482143,0.02128,110910.0,110900.0,0.1458167]
[1761795482443,0.0423,110910.0,110900.0,0.77907782]
[1761795482646,0.05603,110910.0,110900.0,0.77907782]
[1761795483248,0.06003,110910.0,110900.0,0.77907782]
[1761795483449,0.06003,110910.0,110900.0,0.78107782]
[1761795483946,0.06003,110910.0,110900.0,0.78307782]
[1761795484349,0.06003,110910.0,110900.0,0.4608167]
[1761795484551,0.06003,110910.0,110900.0,0.78307782]
[1761795484752,0.05603,110910.0,110900.0,0.78307782]
[1761795485050,0.05603,110910.0,110900.0,0.77253782]
[1761795485246,0.05603,110910.0,110900.0,0.61140726]
[1761795486244,0.05603,110910.0,110900.0,0.77253782]
[1761795487250,0.05603,110910.0,110900.0,0.84642745]
[1761795488331,0.08023777,110910.0,110900.0,0.84642745]
[1761795490143,0.24136833,110910.0,110900.0,0.43399963]
[1761795490551,0.24136833,110910.0,110900.0,0.59513019]
[1761795490752,0.24136833,110910.0,110900.0,0.68529719]
[1761795493248,0.27374552,110910.0,110900.0,0.68529719]
[1761795493553,0.24136833,110910.0,110900.0,0.68529719]
[1761795494247,0.27374552,110910.0,110900.0,0.68529719]
[1761795494553,0.05549719,110930.0,110920.0,0.1480803]
[1761795494741,0.07681719,110930.0,110920.0,0.62005086]
[1761795495145,0.04444,110930.0,110920.0,0.62005086]
[1761795495648,0.07681719,110930.0,110920.0,0.62205086]
[1761795495854,0.04444,110930.0,110920.0,0.78318142]
[1761795496256,0.04444,110930.0,110920.0,0.4589203]
[1761795496457,0.04444,110930.0,110920.0,0.78318142]
[1761795497355,0.058,110930.0,110920.0,0.78318142]
[1761795497741,0.25167775,110940.0,110930.0,0.1353822]
[1761795497946,0.25167775,110940.0,110930.0,0.29651276]
[1761795498555,0.21930056,110940.0,110930.0,0.29651276]
[1761795498857,0.22030056,110940.0,110930.0,0.29651276]
[1761795499556,0.22030056,110940.0,110930.0,0.20737056]
[1761795499958,0.22030056,110940.0,110930.0,0.29751266]
[1761795500346,0.05549719,110970.0,110960.0,0.04524]
[1761795500661,0.06220218,110980.0,110960.0,0.04524]
[1761795500662,0.21913056,110980.0,110970.0,0.04524]
[1761795500959,0.69118112,110980.0,110970.0,0.04524]
[1761795501664,0.53013056,110980.0,110970.0,0.04524]
[1761795501862,0.21913056,110980.0,110970.0,0.1353499]
[1761795502058,0.53013056,110980.0,110970.0,0.29648046]
[1761795502362,0.53013056,110980.0,110970.0,0.30671262]
[1761795502558,0.058,110980.0,110970.0,0.30671262]
[1761795502751,0.369,110980.0,110970.0,0.30671262]
[1761795502955,0.53009056,110980.0,110970.0,0.30671262]
[1761795503147,0.36896,110980.0,110970.0,0.30671262]
[1761795503360,0.53009056,110980.0,110970.0,0.30671262]
[1761795503664,0.53209056,110980.0,110970.0,0.30671262]
[1761795503868,0.22113056,110980.0,110970.0,0.30671262]
[1761795504161,0.53209056,110980.0,110970.0,0.30671262]
[1761795505552,0.53209056,110980.0,110970.0,0.14558206]
[1761795506558,0.53205056,110980.0,110970.0,0.30671262]
[1761795506956,0.37092,110980.0,110970.0,0.30671262]
[1761795507362,0.53201056,110980.0,110970.0,0.30671222]
[1761795507655,0.53201056,110980.0,110970.0,0.14558166]
[1761795507854,0.69314112,110980.0,110970.0,0.05547216]
[1761795508453,0.69314112,110980.0,110970.0,0.03283216]
[1761795508653,0.69314112,110980.0,110950.0,0.1353597]
[1761795508654,0.058,110960.0,110950.0,0.1353597]
[1761795508955,0.52997056,110960.0,110950.0,0.1353597]
[1761795509752,0.53097056,110960.0,110950.0,0.1353597]
[1761795510263,0.53097056,110960.0,110950.0,0.1363597]
[1761795510445,0.36984,110960.0,110950.0,0.1363597]
[1761795510648,0.69210112,110960.0,110950.0,0.001]
[1761795510861,0.69210112,110960.0,110950.0,0.01135804]
[1761795511067,0.69210112,110960.0,110950.0,0.001]
[1761795511361,0.69482112,110960.0,110950.0,0.001]
[1761795513263,0.71482112,110960.0,110950.0,0.001]
[1761795515564,0.71486112,110960.0,110950.0,0.001]
[1761795516260,1.31486112,110960.0,110950.0,0.001]
[1761795516455,0.71486112,110960.0,110950.0,0.001]
[1761795516657,0.73486112,110960.0,110950.0,0.001]
[1761795516960,0.71486112,110960.0,110950.0,0.001]
[1761795517152,0.74398112,110960.0,110950.0,0.001]
[1761795517352,0.05649,110930.0,110920.0,0.1339573]
[1761795517552,0.36733,110930.0,110920.0,0.1339573]
[1761795518164,0.36733,110930.0,110920.0,0.04381]
[1761795518463,0.36733,110930.0,110920.0,0.1339611]
[1761795518852,0.36733,110930.0,110920.0,0.11948463]
[1761795519050,0.36733,110930.0,110920.0,0.13084167]
[1761795519253,0.36733,110930.0,110920.0,0.06016704]
[1761795519647,0.36733,110930.0,110920.0,0.05916704]
[1761795520553,0.36733,110930.0,110920.0,0.05816704]
[1761795521565,0.36733,110930.0,110920.0,0.05616704]
[1761795523363,0.36733,110930.0,110920.0,0.21716915]
[1761795524362,0.36733,110930.0,110920.0,0.05616704]
[1761795525266,0.36733,110930.0,110920.0,0.05716704]
[1761795526164,0.36733,110930.0,110920.0,0.05616704]
[1761795526766,0.36733,110930.0,110920.0,0.21716915]
[1761795532775,0.36733,110930.0,110920.0,0.05616704]
[1761795533464,0.52833211,110930.0,110920.0,0.01235704]
[1761795534370,0.53105211,110930.0,110920.0,0.01235704]
[1761795534569,0.52833211,110930.0,110920.0,0.01035704]
[1761795534774,0.52933211,110930.0,110920.0,0.001]
[1761795535976,0.52933211,110930.0,110920.0,0.01270674]
[1761795537782,0.52933211,110930.0,110920.0,0.001]
[1761795538170,0.56163775,110930.0,110920.0,0.001]
[1761795538577,0.54933211,110930.0,110920.0,0.001]
[1761795539091,0.36833,110930.0,110920.0,0.04481]
[1761795539281,0.04469,110930.0,110920.0,0.32056661]
[1761795539582,0.04469,110930.0,110920.0,0.92056661]
[1761795540177,0.04469,110930.0,110920.0,0.95293511]
[1761795540575,0.04369,110930.0,110920.0,0.95293511]
[1761795540776,0.05688,110930.0,110920.0,0.86378211]
[1761795541776,0.05688,110930.0,110920.0,0.6556315]
[1761795541982,0.05688,110930.0,110920.0,0.85200211]
[1761795542172,0.02104,110930.0,110920.0,0.86103211]
[1761795542374,0.04369,110930.0,110920.0,0.95118471]
[1761795543274,0.04369,110930.0,110920.0,0.86203211]
[1761795544379,0.04369,110930.0,110920.0,0.95218471]
[1761795545082,0.04369,110930.0,110920.0,0.86203211]
[1761795545587,0.0569,110930.0,110920.0,0.86203211]
[1761795546083,0.04369,110930.0,110920.0,0.86203211]
[1761795546385,0.04369,110930.0,110920.0,0.95218491]
[1761795546589,0.04369,110930.0,110920.0,0.95118491]
[1761795546778,0.04369,110930.0,110920.0,0.95218491]
[1761795547575,0.04369,110930.0,110920.0,0.95418491]
[1761795549886,0.04369,110930.0,110920.0,1.26490491]
[1761795552088,0.04369,110930.0,110920.0,1.17475211]
[1761795552287,0.0569,110930.0,110920.0,1.17475211]
[1761795552484,0.0569,110930.0,110920.0,1.16572211]
[1761795553288,0.0569,110930.0,110920.0,0.9723515]
[1761795554691,0.0569,110930.0,110920.0,0.9703515]
[1761795555489,0.0569,110930.0,110920.0,0.9693515]
[1761795555691,0.0569,110930.0,110920.0,0.9703515]
[1761795556592,0.0569,110930.0,110920.0,0.3703515]
[1761795559495,0.04369,110930.0,110920.0,0.63053651]
[1761795559688,0.08084619,110940.0,110930.0,0.04329]
[1761795560796,0.08084619,110940.0,110930.0,0.04529]
[1761795563497,0.06804619,110940.0,110930.0,0.21907211]
[1761795563699,0.08136619,110940.0,110930.0,0.21907211]
[1761795564093,0.08136619,110940.0,110930.0,0.05807]
[1761795564294,0.08136619,110940.0,110930.0,0.04529]
[1761795568900,0.08140134,110940.0,110930.0,0.04529]
[1761795569301,0.11370698,110940.0,110930.0,0.04529]
[1761795569701,0.08140134,110940.0,110930.0,0.04529]
[1761795570309,0.24240345,110940.0,110930.0,0.04529]
[1761795570805,0.24240345,110940.0,110930.0,0.002]
[1761795570995,0.65411986,110940.0,110930.0,0.002]
[1761795571195,0.7204564,110940.0,110930.0,0.002]
[1761795571396,0.04377,110920.0,110910.0,0.0534585]
[1761795571603,0.24240497,110920.0,110910.0,0.0756585]
[1761795571798,0.08140286,110920.0,110910.0,0.0756585]
[1761795572409,0.08140286,110920.0,110910.0,0.05520922]
[1761795572611,0.08040286,110920.0,110910.0,0.05520922]
[1761795573109,0.08040286,110920.0,110910.0,0.05720922]
[1761795574599,0.05609,110920.0,110910.0,0.05720922]
[1761795578612,0.08040286,110920.0,110910.0,0.05720922]
[1761795579317,0.21712146,110920.0,110910.0,0.21824068]
[1761795580517,0.05609,110920.0,110910.0,0.21824068]
[1761795580814,0.10116,110930.0,110920.0,0.05587]
[1761795581021,0.04443,110930.0,110920.0,0.37793292]
[1761795581212,0.04443,110930.0,110920.0,0.68845292]
[1761795581914,0.04443,110930.0,110920.0,0.77860542]
[1761795581915,0.04543,110930.0,110920.0,0.77860542]
[1761795582305,0.04643,110930.0,110920.0,0.68845292]
[1761795582714,0.04643,110930.0,110920.0,0.37793292]
[1761795582920,0.04543,110930.0,110920.0,0.68941292]
[1761795583815,0.04443,110930.0,110920.0,0.68941292]
[1761795584921,0.21889146,110930.0,110920.0,0.51869146]
[1761795585115,0.24320432,110930.0,110920.0,0.35766]
[1761795585822,0.24320432,110930.0,110920.0,0.20821146]
[1761795586715,0.24320432,110930.0,110920.0,0.04718]
[1761795588526,0.21889146,110930.0,110920.0,0.04718]
[1761795591826,0.24320432,110930.0,110920.0,0.04718]
[1761795592031,0.24320432,110930.0,110920.0,0.001]
[1761795592217,0.55364432,110930.0,110920.0,0.02399]
[1761795592924,0.55364432,110930.0,110920.0,0.001]
[1761795594029,0.55464432,110930.0,110920.0,0.001]
[1761795594422,0.05786,110920.0,110910.0,0.52957068]
[1761795594617,0.21889146,110920.0,110910.0,0.36853922]
[1761795595426,0.40423578,110920.0,110910.0,0.36853922]
[1761795595628,0.24320432,110920.0,110910.0,0.36953922]
[1761795597123,0.24320432,110920.0,110910.0,0.53057068]
[1761795601531,0.24320432,110920.0,110910.0,0.36953922]
[1761795601740,0.45665292,110920.0,110910.0,0.001]
[1761795601931,0.04443,110910.0,110900.0,6.679e-05]
[1761795602230,0.71464829,110910.0,110900.0,6.679e-05]
[1761795602548,0.91706543,110910.0,110900.0,0.01093757]
[1761795602836,0.89278006,110910.0,110900.0,6.679e-05]
[1761795603021,0.9170619,110910.0,110900.0,6.679e-05]
[1761795603333,0.75464476,110910.0,110900.0,0.00106679]
[1761795603736,0.75464476,110910.0,110900.0,0.00306679]
[1761795604437,0.73464476,110910.0,110900.0,0.00306679]
[1761795604922,0.75464476,110910.0,110900.0,0.00306679]
[1761795605937,0.74550006,110910.0,110900.0,0.00306679]
[1761795606138,0.03476,110900.0,110870.0,0.36330311]
[1761795606324,0.21738146,110880.0,110870.0,0.38443311]
[1761795606827,0.37841292,110880.0,110870.0,0.0850639]
[1761795607232,0.37847971,110880.0,110870.0,0.0850639]
[1761795607429,0.37847971,110880.0,110870.0,0.0910639]
[1761795607830,0.37847971,110880.0,110870.0,0.0850639]
[1761795608539,0.37847971,110880.0,110870.0,0.0880639]
[1761795609240,0.37847971,110880.0,110870.0,0.0850639]
[1761795609435,0.21744825,110880.0,110870.0,0.0850639]
[1761795612541,0.63847971,110880.0,110870.0,0.03037311]
[1761795612738,0.05667,110860.0,110850.0,0.04358]
[1761795612937,0.37879789,110860.0,110850.0,0.04358]
[1761795613128,0.37879789,110860.0,110850.0,0.05490152]
[1761795614742,0.21776643,110860.0,110850.0,0.05790152]
[1761795615134,0.37879789,110860.0,110850.0,0.05790152]
[1761795615334,0.21776643,110860.0,110850.0,0.05790152]
[1761795615741,0.37879789,110860.0,110850.0,0.05790152]
[1761795619236,0.21776643,110860.0,110850.0,0.05790152]
[1761795619437,0.37879789,110860.0,110850.0,0.05790152]
[1761795620550,0.05673497,110860.0,110850.0,0.05790152]
[1761795620850,0.21776643,110860.0,110850.0,0.05790152]
[1761795625938,0.04384497,110860.0,110850.0,0.32192238]
[1761795626136,0.04384497,110860.0,110850.0,0.23171298]
[1761795626554,0.05650497,110860.0,110850.0,0.23171298]
[1761795628744,0.21753643,110860.0,110850.0,0.23171298]
[1761795628949,0.21753643,110860.0,110850.0,0.21893298]
[1761795630451,0.05650497,110860.0,110850.0,0.21893298]
[1761795630645,0.21753643,110860.0,110850.0,0.21893298]